bitfinex/quotes_SOLUSD_20241209
["timestamp","ask_amount","ask_price","bid_price","bid_amount"]
[1733764628879,0.6653,225.11,225.02,14.45884216]
[1733764629083,20.6653,225.11,225.02,14.45884216]
[1733764629268,0.6653,225.11,225.02,9.43745705]
[1733764629774,0.6653,225.11,225.02,0.25098]
[1733764630796,43.776884,225.1,225.02,0.12549]
[1733764630963,23.776884,225.08,225.01,0.5390594]
[1733764631160,0.6653,225.07,225.01,0.5390594]
[1733764632783,0.6653,225.07,225.02,0.25098]
[1733764633077,20.6653,225.1,225.02,14.61140273]
[1733764634563,0.6653,225.1,225.02,14.61140273]
[1733764634885,20.6653,225.11,225.02,14.61140273]
[1733764635387,20.6653,225.11,225.02,0.25098]
[1733764639760,20.6653,225.11,225.02,14.61140273]
[1733764639964,20.6653,225.11,225.02,0.25098]
[1733764641455,20.6653,225.11,225.02,14.61140273]
[1733764641675,20.6653,225.11,225.02,0.25098]
[1733764646471,27.108684,225.1,225.02,0.25098]
[1733764646715,0.6653,225.09,225.01,0.5390594]
[1733764647009,23.776884,225.08,225.01,0.5390594]
[1733764647237,0.6653,225.07,225.01,0.5390594]
[1733764647413,23.776884,225.06,225.01,0.5390594]
[1733764647621,0.6653,225.05,225.01,0.5390594]
[1733764647911,20.0,225.02,225.01,0.5390594]
[1733764648069,20.6653,225.02,225.01,0.5390594]
[1733764650408,0.6653,225.03,225.01,0.5390594]
[1733764650816,20.6653,225.03,225.01,0.5390594]
[1733764651216,27.109884,225.02,225.01,0.5390594]
[1733764651523,27.109884,225.02,224.83,15.911152]
[1733764651524,23.776884,224.98,224.85,14.36042273]
[1733764651710,23.776884,224.96,224.84,14.36042273]
[1733764651886,0.6653,224.95,224.84,14.36042273]
[1733764652526,0.6653,224.95,224.85,0.12549]
[1733764653316,0.6653,224.95,224.84,14.36042273]
[1733764653529,0.6653,224.95,224.85,0.25098]
[1733764654186,0.6653,224.95,224.84,0.25098]
[1733764654823,23.776884,224.94,224.81,20.71802273]
[1733764655025,0.6653,224.93,224.82,14.48591273]
[1733764656029,0.6653,224.93,224.83,0.12549]
[1733764656204,0.6653,224.93,224.82,0.25098]
[1733764656527,20.0,224.83,224.78,0.5390594]
[1733764656733,43.776884,224.79,224.78,0.5390594]
[1733764657103,43.776884,224.79,224.78,0.09837053]
[1733764657726,51.401084,224.79,224.78,0.09837053]
[1733764658509,52.066384,224.79,224.78,0.09837053]
[1733764659219,52.066384,224.79,224.61,1.661]
[1733764659220,23.776884,224.74,224.61,16.02142273]
[1733764659544,23.776884,224.72,224.61,16.02142273]
[1733764659759,0.6653,224.71,224.61,16.02142273]
[1733764660624,0.6653,224.71,224.65,0.25098]
[1733764660819,24.442184,224.75,224.65,0.25098]
[1733764661325,24.442184,224.75,224.64,0.25098]
[1733764661547,24.442184,224.75,224.64,14.48591273]
[1733764661917,24.442184,224.75,224.62,0.12549]
[1733764661918,24.442184,224.75,224.62,14.48591273]
[1733764662463,0.6653,224.75,224.66,0.12549]
[1733764662949,24.442184,224.78,224.65,0.12549]
[1733764663726,23.776884,224.74,224.65,0.12549]
[1733764663932,0.6653,224.73,224.65,0.12549]
[1733764664137,0.6653,224.73,224.62,0.12549]
[1733764664648,23.776884,224.72,224.62,0.12549]
[1733764664941,23.337,224.75,224.57,14.36042273]
[1733764664942,23.776884,224.7,224.57,14.36042273]
[1733764665109,0.6653,224.69,224.57,14.36042273]
[1733764665307,0.6653,224.69,224.58,0.12549]
[1733764666165,0.6653,224.69,224.59,0.12549]
[1733764666542,0.6653,224.69,224.62,0.12549]
[1733764666739,7.6242,224.79,224.65,0.25098]
[1733764666740,0.6653,224.74,224.65,0.25098]
[1733764667274,0.6653,224.74,224.65,0.12549]
[1733764667563,0.6653,224.74,224.63,0.12549]
[1733764667771,24.442184,224.75,224.63,0.25098]
[1733764668671,0.6653,224.75,224.64,14.48591273]
[1733764668838,0.6653,224.75,224.65,0.12549]
[1733764669378,0.6653,224.75,224.66,0.12549]
[1733764670056,0.6653,224.75,224.65,0.25098]
[1733764670944,0.6653,224.75,224.66,0.12549]
[1733764671370,0.6653,224.75,224.67,0.12549]
[1733764671578,0.6653,224.75,224.66,0.12549]
[1733764672949,0.6653,224.75,224.67,0.12549]
[1733764673275,7.6242,224.79,224.67,0.25098]
[1733764673276,24.442184,224.78,224.67,0.25098]
[1733764675164,24.442184,224.78,224.66,0.25098]
[1733764675954,0.6653,224.78,224.7,0.12549]
[1733764676563,0.6653,224.78,224.69,0.25098]
[1733764677766,0.6653,224.78,224.69,14.61140273]
[1733764677963,0.6653,224.78,224.71,0.12549]
[1733764678474,0.6653,224.78,224.7,0.12549]
[1733764678981,0.6653,224.78,224.69,0.12549]
[1733764679370,0.6653,224.78,224.68,0.25098]
[1733764679769,0.6653,224.78,224.69,0.25098]
[1733764679989,0.6653,224.78,224.69,14.48591273]
[1733764680166,1.5466,224.79,224.7,0.12549]
[1733764680489,0.6653,224.78,224.7,0.12549]
[1733764683878,0.6653,224.78,224.65,1.6577]
[1733764684096,20.6653,224.78,224.65,16.01812273]
[1733764685100,20.6653,224.78,224.66,14.36042273]
[1733764685404,20.6653,224.78,224.66,9.46689123]
[1733764686172,20.6653,224.78,224.66,0.25098]
[1733764686679,20.6653,224.78,224.66,9.46689123]
[1733764687205,23.776884,224.77,224.64,20.12549]
[1733764687508,0.6653,224.76,224.64,0.12549]
[1733764687692,23.776884,224.75,224.6,9.21591123]
[1733764687901,23.776884,224.73,224.59,7.8936]
[1733764688096,23.776884,224.71,224.59,0.12549]
[1733764688410,0.6653,224.7,224.59,9.34140123]
[1733764688987,0.6653,224.7,224.59,9.21591123]
[1733764689511,2.2542,224.7,224.6,0.12549]
[1733764690316,2.2542,224.7,224.6,0.25098]
[1733764690490,2.2542,224.7,224.62,0.12549]
[1733764690889,1.5889,224.7,224.64,0.12549]
[1733764691092,1.5889,224.7,224.64,0.25098]
[1733764691993,1.5889,224.7,224.64,0.12549]
[1733764692214,1.5889,224.7,224.63,0.25098]
[1733764693102,24.442184,224.69,224.55,0.5390594]
[1733764693297,24.442184,224.69,224.56,14.40345606]
[1733764693501,24.442184,224.69,224.57,0.12549]
[1733764693697,24.442184,224.69,224.57,14.52894606]
[1733764693915,24.442184,224.69,224.59,0.12549]
[1733764694293,24.442184,224.69,224.59,0.25098]
[1733764694490,0.6653,224.72,224.64,14.65443606]
[1733764694697,0.6653,224.72,224.66,0.12549]
[1733764694913,0.6653,224.74,224.66,0.25098]
[1733764695420,0.6653,224.74,224.65,14.65443606]
[1733764695719,0.6653,224.74,224.67,0.25098]
[1733764696825,0.6653,224.74,224.56,11.1324]
[1733764697029,0.6653,224.74,224.59,34.40345606]
[1733764697217,3.3373,224.73,224.58,14.40345606]
[1733764697392,0.6653,224.72,224.58,14.40345606]
[1733764697598,0.6653,224.72,224.59,0.12549]
[1733764697824,20.6653,224.72,224.59,0.12549]
[1733764698200,23.776884,224.71,224.59,0.12549]
[1733764698401,23.776884,224.69,224.59,0.25098]
[1733764698605,0.6653,224.68,224.59,14.65443606]
[1733764698805,0.6653,224.68,224.61,0.12549]
[1733764699297,24.442184,224.71,224.6,0.25098]
[1733764699524,24.442184,224.71,224.61,0.12549]
[1733764700034,0.6653,224.71,224.63,0.25098]
[1733764700204,23.3373,224.73,224.63,0.25098]
[1733764700205,20.6653,224.72,224.63,0.25098]
[1733764700614,0.6653,224.72,224.62,0.25098]
[1733764701524,24.442184,224.74,224.62,0.25098]
[1733764701732,24.442184,224.74,224.62,14.52894606]
[1733764702895,24.442184,224.74,224.63,0.12549]
[1733764703092,0.6653,224.74,224.67,0.12549]
[1733764703398,0.6653,224.74,224.67,0.25098]
[1733764704721,2.2023,224.8,224.72,0.25098]
[1733764705092,2.2023,224.8,224.72,14.65443606]
[1733764705295,2.2023,224.8,224.73,14.40345606]
[1733764705514,2.2023,224.8,224.74,0.12549]
[1733764706195,2.2023,224.8,224.73,0.25098]
[1733764706699,2.2023,224.8,224.75,0.25098]
[1733764706700,0.6653,224.8,224.75,0.25098]
[1733764706896,0.6653,224.84,224.75,0.25098]
[1733764707096,0.6653,224.84,224.75,0.12549]
[1733764708030,0.6653,224.84,224.75,0.25098]
[1733764708231,0.6653,224.91,224.84,0.25098]
[1733764708439,0.6653,224.91,224.87,0.25098]
[1733764708598,0.6653,224.96,224.87,0.25098]
[1733764709024,0.6653,224.96,224.86,0.25098]
[1733764709232,0.6653,224.96,224.86,14.65443606]
[1733764709398,0.6653,224.96,224.88,0.25098]
[1733764709599,0.6653,224.96,224.9,0.12549]
[1733764709914,0.6653,224.96,224.91,14.40345606]
[1733764710125,0.6653,224.96,224.9,0.25098]
[1733764710322,7.9437,225.02,224.9,0.25098]
[1733764710639,0.6653,225.01,224.92,0.25098]
[1733764710927,0.6653,225.01,224.92,0.12549]
[1733764711408,0.6653,225.01,224.89,14.40345606]
[1733764711409,0.6653,225.01,224.9,0.25098]
[1733764711613,0.6653,225.01,224.92,0.12549]
[1733764712137,23.776884,225.0,224.91,0.12549]
[1733764712351,0.6653,224.99,224.91,0.12549]
[1733764712502,23.776884,224.98,224.91,0.12549]
[1733764712710,0.6653,224.97,224.91,0.12549]
[1733764713106,0.6653,224.97,224.83,21.7312159]
[1733764713107,23.776884,224.96,224.83,21.7312159]
[1733764713305,0.6653,224.95,224.85,14.40345606]
[1733764713610,0.6653,224.95,224.87,0.25098]
[1733764715401,0.6653,224.95,224.87,0.12549]
[1733764715606,23.776884,224.94,224.84,0.12549]
[1733764715832,23.776884,224.92,224.81,14.40345606]
[1733764716007,0.6653,224.91,224.81,14.40345606]
[1733764716304,0.6653,224.91,224.76,21.07068372]
[1733764716305,23.776884,224.9,224.8,14.40345606]
[1733764716511,0.6653,224.89,224.8,14.40345606]
[1733764716726,0.6653,224.89,224.81,14.52894606]
[1733764717321,0.6653,224.91,224.85,14.52894606]
[1733764717511,0.6653,224.95,224.87,14.52894606]
[1733764717705,0.6653,224.95,224.88,0.12549]
[1733764718740,0.6653,224.95,224.89,14.52894606]
[1733764718948,0.6653,224.95,224.9,0.12549]
[1733764719138,0.6653,224.95,224.89,0.12549]
[1733764719460,0.6653,224.95,224.88,0.12549]
[1733764719959,0.6653,224.95,224.86,14.52894606]
[1733764720334,23.776884,224.94,224.87,0.12549]
[1733764720650,0.6653,224.93,224.85,0.12549]
[1733764721030,23.776884,224.92,224.76,19.2862]
[1733764721239,0.6653,224.91,224.81,14.40345606]
[1733764721559,23.776884,224.9,224.82,0.12549]
[1733764721739,0.6653,224.89,224.82,0.12549]
[1733764721943,0.6653,224.89,224.8,14.40345606]
[1733764722143,0.6653,224.89,224.77,14.403456]
[1733764722144,0.6653,224.89,224.81,14.40345606]
[1733764722474,7.7505,224.96,224.85,14.52894606]
[1733764722475,0.6653,224.92,224.85,14.52894606]
[1733764722644,0.6653,224.92,224.85,0.12549]
[1733764723147,23.776884,224.91,224.83,0.12549]
[1733764723347,0.6653,224.9,224.83,0.12549]
[1733764723534,0.6653,224.9,224.82,0.12549]
[1733764724534,0.6653,224.9,224.83,14.52894606]
[1733764724962,6.2488,225.01,224.9,0.12549]
[1733764725179,6.2488,225.01,224.89,14.52894606]
[1733764725180,0.6653,225.0,224.93,0.12549]
[1733764725740,0.6653,225.0,224.92,14.52894606]
[1733764725961,0.6653,225.0,224.92,0.12549]
[1733764726266,0.6653,225.0,224.91,0.25098]
[1733764726648,0.6653,225.0,224.91,14.65443606]
[1733764727653,0.6653,225.0,224.94,0.25098]
[1733764727853,0.6653,225.01,224.94,0.25098]
[1733764728455,0.6653,225.01,224.94,0.12549]
[1733764728758,0.6653,225.01,224.9,14.40345606]
[1733764728958,0.6653,225.01,224.91,0.12549]
[1733764729898,0.6653,225.01,224.91,14.52894606]
[1733764729899,20.0,225.0,224.91,14.52894606]
[1733764730065,20.0,225.0,224.92,0.25098]
[1733764730066,0.6653,224.99,224.92,0.25098]
[1733764730866,0.6653,224.99,224.89,14.40345606]
[1733764731072,23.776884,224.98,224.87,14.40345606]
[1733764731238,0.6653,224.97,224.88,14.40345606]
[1733764731435,0.6653,224.97,224.89,0.12549]
[1733764731737,0.6653,224.97,224.89,14.52894606]
[1733764731961,0.6653,224.97,224.89,0.12549]
[1733764732265,23.3333,225.0,224.91,14.52894606]
[1733764732266,0.6653,224.99,224.91,14.52894606]
[1733764732441,0.6653,224.99,224.92,0.12549]
[1733764732879,0.6653,224.99,224.91,0.25098]
[1733764735542,24.442184,225.01,224.91,14.65443606]
[1733764735770,24.442184,225.01,224.92,14.52894606]
[1733764736446,24.442184,225.01,224.93,0.12549]
[1733764737557,0.6653,225.01,224.93,0.12549]
[1733764739655,0.6653,225.01,224.94,0.12549]
[1733764740651,0.6653,225.01,224.95,0.12549]
[1733764740856,0.6653,225.02,224.95,0.25098]
[1733764741061,0.6653,225.02,224.95,14.65443606]
[1733764741586,0.6653,225.08,225.01,0.12549]
[1733764741745,1.5788,225.09,225.01,0.12549]
[1733764741746,0.6653,225.05,225.01,0.25098]
[1733764742073,0.6653,225.08,225.01,0.12549]
[1733764742468,0.6653,225.08,225.0,0.25098]
[1733764743054,0.6653,225.08,225.0,0.12549]
[1733764743254,0.6653,225.08,224.99,0.25098]
[1733764743853,0.6653,225.08,225.0,0.12549]
[1733764744673,0.6653,225.08,225.01,0.12549]
[1733764744973,0.6653,225.08,225.01,0.25098]
[1733764745174,14.35610673,225.07,225.01,0.25098]
[1733764745349,15.02140673,225.06,225.01,0.12549]
[1733764745552,14.35610673,225.05,225.01,0.12549]
[1733764745881,15.02140673,225.04,224.99,0.12549]
[1733764746053,15.02140673,225.04,224.92,8.44126245]
[1733764746054,14.35610673,225.01,224.94,14.35610673]
[1733764746251,0.6653,225.0,224.94,14.35610673]
[1733764746663,14.35610673,225.01,224.95,0.12549]
[1733764746858,14.35610673,225.02,224.95,0.12549]
[1733764747189,0.6653,225.01,224.95,0.12549]
[1733764747351,15.02140673,225.01,224.95,0.12549]
[1733764747555,14.35610673,224.99,224.92,14.35610673]
[1733764747771,3.333,225.02,224.86,7.9299]
[1733764747772,14.35610673,224.97,224.9,14.35610673]
[1733764748080,14.35610673,224.98,224.92,0.12549]
[1733764748287,15.02140673,225.01,224.94,14.48159673]
[1733764748448,14.35610673,225.03,224.96,14.48159673]
[1733764748647,15.02140673,225.02,224.98,0.12549]
[1733764749074,15.02140673,225.02,224.96,0.12549]
[1733764749244,0.6653,225.02,224.96,14.48159673]
[1733764749464,14.35610673,225.04,224.98,0.12549]
[1733764749672,0.6653,225.03,224.98,0.12549]
[1733764749986,0.6653,225.04,224.99,0.12549]
[1733764750189,0.6653,225.04,224.99,0.25098]
[1733764750365,14.35610673,225.05,224.99,0.25098]
[1733764751451,14.35610673,225.06,225.0,0.12549]
[1733764751668,0.6653,225.08,225.0,0.12549]
[1733764751669,14.35610673,225.07,225.01,0.12549]
[1733764751879,15.02140673,225.08,225.02,0.12549]
[1733764752558,15.02140673,225.08,225.02,14.48159673]
[1733764752866,1.5788,225.09,225.04,0.12549]
[1733764752867,0.6653,225.09,225.04,0.12549]
[1733764753066,14.35610673,225.1,225.04,0.12549]
[1733764754396,14.35610673,225.11,225.05,0.12549]
[1733764754582,0.6653,225.1,225.05,0.12549]
[1733764754903,15.02140673,225.1,225.04,0.25098]
[1733764755094,14.35610673,225.09,225.04,0.12549]
[1733764755754,0.6653,225.08,225.02,0.12549]
[1733764755955,14.35610673,225.07,225.01,0.12549]
[1733764756185,14.35610673,225.06,225.01,0.12549]
[1733764756385,14.35610673,225.06,225.0,0.25098]
[1733764761128,14.35610673,225.05,225.0,0.12549]
[1733764761295,14.35610673,225.04,224.98,0.12549]
[1733764761889,14.35610673,225.03,224.97,0.12549]
[1733764762090,14.35610673,225.03,224.96,16.00510673]
[1733764762830,14.35610673,225.04,224.97,14.48159673]
[1733764763818,14.35610673,225.04,224.98,0.12549]
[1733764764096,14.35610673,225.05,224.99,0.12549]
[1733764764425,14.35610673,225.04,224.99,0.12549]
[1733764765325,14.35610673,225.03,224.98,0.12549]
[1733764765624,14.35610673,225.02,224.98,0.12549]
[1733764765919,14.35610673,225.02,224.97,0.25098]
[1733764766633,14.35610673,225.0,224.96,0.12549]
[1733764766833,3.3322,225.08,224.91,1.6611]
[1733764766834,14.35610673,224.97,224.91,1.6611]
[1733764767123,14.35610673,224.96,224.91,1.6611]
[1733764767625,14.35610673,224.96,224.92,0.12549]
[1733764768339,14.35610673,224.95,224.9,0.12549]
[1733764769591,14.35610673,224.96,224.9,0.25098]
[1733764771724,14.35610673,225.01,224.94,0.25098]
[1733764771938,14.35610673,225.01,224.94,14.60708673]
[1733764772105,14.35610673,225.02,224.96,0.25098]
[1733764772426,3.3326,225.05,224.96,0.12549]
[1733764772427,14.35610673,225.0,224.96,0.12549]
[1733764773126,14.35610673,225.0,224.93,0.12549]
[1733764773328,14.35610673,225.0,224.93,0.25098]
[1733764774031,14.35610673,225.0,224.94,0.12549]
[1733764774509,14.35610673,225.02,224.97,0.12549]
[1733764774709,14.35610673,225.02,224.97,0.25098]
[1733764775808,14.35610673,225.03,224.97,0.25098]
[1733764776226,14.35610673,225.06,224.99,0.12549]
[1733764776403,14.35610673,225.05,224.99,0.25098]
[1733764776614,14.35610673,225.06,224.99,14.60708673]
[1733764778332,14.35610673,225.09,225.03,0.12549]
[1733764778508,14.35610673,225.1,225.03,0.25098]
[1733764779326,14.35610673,225.07,225.01,0.25098]
[1733764779808,14.35610673,225.05,225.0,0.12549]
[1733764780011,14.35610673,225.05,224.99,0.25098]
[1733764780832,14.35610673,225.04,224.99,0.12549]
[1733764781030,14.35610673,225.03,224.99,0.12549]
[1733764781339,9.9943,225.13,224.98,6.1888]
[1733764781340,14.35610673,225.01,224.98,6.1888]
[1733764781717,14.35610673,225.01,224.96,1.5802]
[1733764782244,14.35610673,225.01,224.97,0.12549]
[1733764782469,14.35610673,225.02,224.97,0.12549]
[1733764782646,14.35610673,225.03,224.97,0.12549]
[1733764783316,14.35610673,225.02,224.97,0.12549]
[1733764783723,14.35610673,225.01,224.97,0.12549]
[1733764786952,14.35610673,225.0,224.96,1.5802]
[1733764787468,14.35610673,225.06,224.93,6.0557]
[1733764787469,14.35610673,224.98,224.93,6.0557]
[1733764787619,14.35610673,224.99,224.93,6.0557]
[1733764787952,14.35610673,225.01,224.94,0.25098]
[1733764788248,14.35610673,225.01,224.94,14.60708673]
[1733764788559,14.35610673,225.01,224.94,0.25098]
[1733764789230,14.35610673,225.03,224.96,0.12549]
[1733764789429,14.35610673,225.03,224.96,14.60708673]
[1733764789626,14.35610673,225.06,224.99,0.12549]
[1733764790039,14.35610673,225.05,224.99,0.12549]
[1733764790853,14.35610673,225.02,224.95,14.35610673]
[1733764791026,14.35610673,225.02,224.94,14.35610673]
[1733764791719,14.35610673,225.02,224.96,0.12549]
[1733764791946,14.35610673,225.05,224.98,14.35610673]
[1733764792157,14.35610673,225.05,224.98,0.12549]
[1733764792357,14.35610673,225.05,224.98,14.60708673]
[1733764793343,14.35610673,225.09,225.03,0.12549]
[1733764793540,6.662,225.16,225.03,0.25098]
[1733764793541,14.35610673,225.11,225.03,0.25098]
[1733764793768,14.35610673,225.12,225.05,0.25098]
[1733764793955,14.35610673,225.12,225.05,14.60708673]
[1733764794680,14.35610673,225.13,225.05,14.60708673]
[1733764795557,14.35610673,225.12,225.05,14.60708673]
[1733764796477,14.35610673,225.12,225.05,0.25098]
[1733764796854,14.35610673,225.13,225.07,0.12549]
[1733764797057,14.35610673,225.14,225.07,14.60708673]
[1733764797779,14.35610673,225.15,225.07,14.60708673]
[1733764797952,20.0,225.18,225.11,0.12549]
[1733764797953,14.35610673,225.18,225.11,0.12549]
[1733764798695,14.35610673,225.19,225.13,0.12549]
[1733764798990,14.35610673,225.2,225.13,14.60708673]
[1733764800190,14.35610673,225.2,225.11,6.4421]
[1733764800191,14.35610673,225.19,225.12,14.60708673]
[1733764800568,14.35610673,225.22,225.15,0.25098]
[1733764801051,14.35610673,225.21,225.15,0.25098]
[1733764801471,14.35610673,225.21,225.15,0.12549]
[1733764801666,14.35610673,225.2,225.14,0.25098]
[1733764801965,14.35610673,225.21,225.14,0.25098]
[1733764802883,14.35610673,225.21,225.14,14.35610673]
[1733764803087,14.35610673,225.2,225.15,0.12549]
[1733764803254,14.35610673,225.18,225.12,0.12549]
[1733764803459,14.35610673,225.15,225.11,6.4421]
[1733764804670,20.0,225.25,225.11,6.4421]
[1733764804671,14.35610673,225.14,225.11,6.4421]
[1733764805072,14.35610673,225.15,225.11,6.4421]
[1733764805700,14.35610673,225.13,225.11,6.4421]
[1733764805884,14.35610673,225.12,225.08,1.519]
[1733764806061,14.35610673,225.11,225.08,1.519]
[1733764806263,14.35610673,225.12,225.08,1.519]
[1733764806470,14.35610673,225.13,225.08,1.519]
[1733764806661,14.35610673,225.12,225.08,1.519]
[1733764806863,14.35610673,225.1,225.08,1.519]
[1733764807363,14.35610673,225.09,225.02,1.5396]
[1733764807705,14.35610673,225.03,224.98,6.2947]
[1733764807883,19.20218436,225.17,225.06,122.24389327]
[1733764807884,4.84607763,225.17,225.06,122.24389327]
[1733764808091,1.5784,225.22,225.1,0.12549]
[1733764808772,14.35610673,225.12,225.08,0.12549]
[1733764809179,14.35610673,225.12,225.08,0.25098]
[1733764809372,14.35610673,225.12,225.07,8.1601]
[1733764809572,14.35610673,225.09,225.07,8.1601]
[1733764810807,14.35610673,225.09,225.08,0.25098]
[1733764811315,14.35610673,225.11,225.08,0.25098]
[1733764811518,14.35610673,225.09,225.07,1.5675]
[1733764811695,14.35610673,225.08,225.03,0.25098]
[1733764811882,14.35610673,225.08,225.03,0.12549]
[1733764812077,14.35610673,225.07,225.03,0.12549]
[1733764812708,14.35610673,225.06,225.03,0.12549]
[1733764813077,14.35610673,225.07,225.03,0.25098]
[1733764813572,14.35610673,225.05,225.03,0.25098]
[1733764813774,14.35610673,225.04,225.03,0.25098]
[1733764814185,14.35610673,225.04,224.97,6.0057]
[1733764814186,14.35610673,225.04,224.98,0.12549]
[1733764814395,14.35610673,225.03,224.98,0.12549]
[1733764814596,14.35610673,225.03,224.98,0.25098]
[1733764815014,14.35610673,225.04,224.98,0.25098]
[1733764815398,14.35610673,225.03,224.98,0.25098]
[1733764815702,14.35610673,225.04,224.98,0.25098]
[1733764815905,14.35610673,225.05,224.98,0.25098]
[1733764816198,14.35610673,225.06,224.98,14.60708673]
[1733764816710,3.3319,225.1,225.01,0.25098]
[1733764816711,14.35610673,225.07,225.01,0.25098]
[1733764816913,14.35610673,225.09,225.03,0.12549]
[1733764817084,14.35610673,225.09,225.03,0.25098]
[1733764817482,14.35610673,225.12,225.06,0.25098]
[1733764817904,14.35610673,225.14,225.07,14.35610673]
[1733764818120,14.35610673,225.14,225.08,0.25098]
[1733764818913,14.35610673,225.15,225.08,0.25098]
[1733764819311,14.35610673,225.13,225.07,0.25098]
[1733764819695,3.3307,225.18,225.07,0.25098]
[1733764821097,3.3307,225.18,225.07,14.59921669]
[1733764821520,3.3307,225.18,225.09,0.25098]
[1733764822441,3.3307,225.18,225.07,0.25098]
[1733764823831,3.3307,225.18,225.06,7.8106]
[1733764824031,20.0,225.17,225.06,7.8106]
[1733764824197,20.0,225.17,225.06,1.5383]
[1733764825098,3.3309,225.16,225.06,1.5383]
[1733764825992,3.3309,225.16,225.02,0.25098]
[1733764826404,3.3309,225.16,225.02,14.59921669]
[1733764827695,3.3309,225.16,225.02,0.25098]
[1733764828530,3.3312,225.14,225.02,0.25098]
[1733764831539,3.3312,225.14,225.04,0.25098]
[1733764831849,3.3312,225.14,225.04,0.12549]
[1733764832047,3.3312,225.14,225.03,0.12549]
[1733764832244,3.3312,225.14,225.02,0.25098]
[1733764832444,3.3312,225.14,225.05,0.25098]
[1733764832628,3.3307,225.18,225.05,14.59921669]
[1733764832948,3.3307,225.18,225.07,0.25098]
[1733764833550,5.0,225.25,225.05,14.34823669]
[1733764833551,3.3299,225.23,225.06,0.25098]
[1733764833931,20.0,225.2,225.08,0.25098]
[1733764834745,3.3305,225.19,225.08,0.25098]
[1733764835245,3.3305,225.19,225.1,0.25098]
[1733764836123,3.3291,225.28,225.12,0.25098]
[1733764836328,3.3291,225.28,225.14,0.25098]
[1733764836570,3.3291,225.28,225.14,14.59921669]
[1733764836862,3.3285,225.32,225.16,0.25098]
[1733764837320,3.3285,225.32,225.18,0.25098]
[1733764837517,3.3285,225.32,225.18,14.59921669]
[1733764837748,3.3285,225.32,225.2,0.12549]
[1733764837946,3.3285,225.32,225.2,0.25098]
[1733764838216,3.3285,225.32,225.22,0.25098]
[1733764838454,3.3285,225.32,225.21,1.5276]
[1733764838734,23.3285,225.32,225.22,0.12549]
[1733764838929,23.3285,225.32,225.22,0.25098]
[1733764840932,23.3285,225.32,225.21,1.5276]
[1733764841751,3.3285,225.32,225.21,1.5276]
[1733764842060,3.3285,225.32,225.22,0.12549]
[1733764842227,3.3285,225.32,225.22,0.25098]
[1733764843061,23.3285,225.32,225.22,0.25098]
[1733764843237,3.7790594,225.35,225.22,0.25098]
[1733764843444,3.7790594,225.35,225.24,14.59921669]
[1733764843623,3.7790594,225.35,225.24,15.2649694]
[1733764844050,3.7790594,225.35,225.26,0.25098]
[1733764844727,20.0,225.33,225.25,0.25098]
[1733764846367,3.7790594,225.35,225.27,14.59921669]
[1733764846569,3.7790594,225.35,225.29,0.25098]
[1733764846737,3.7790594,225.35,225.3,6.2146]
[1733764847865,23.3283,225.34,225.26,1.6203]
[1733764849039,29.9849,225.34,225.26,1.6203]
[1733764849857,3.3283,225.34,225.26,1.6203]
[1733764850276,3.3283,225.34,225.27,0.25098]
[1733764850780,3.3283,225.34,225.26,1.6203]
[1733764851761,23.3283,225.34,225.26,1.6203]
[1733764852161,29.9849,225.34,225.26,1.6203]
[1733764853276,29.9861,225.31,225.16,8.0872]
[1733764854355,25.0,225.28,225.16,8.0872]
[1733764854577,20.0,225.23,225.08,1.5383]
[1733764854779,25.0,225.23,225.08,1.5383]
[1733764854989,25.0,225.23,225.09,0.12549]
[1733764855177,25.0,225.23,225.08,1.5383]
[1733764855383,20.0,225.19,225.08,1.5383]
[1733764855753,20.0,225.19,225.09,0.12549]
[1733764855952,20.0,225.19,225.08,1.5383]
[1733764856576,23.3306,225.18,225.09,0.12549]
[1733764857165,23.3306,225.18,225.08,1.5383]
[1733764857488,20.0,225.19,225.09,0.12549]